fUSD/lending_fUSD_20240910
["ID","MTS","AMOUNT","RATE_DAILY","PERIOD"]
[337702600,1725977792217,250.0,0.00011191,2]
[337702601,1725977808740,163.51,0.00011191,2]
[337702602,1725977893025,250000.0,0.00012,2]
[337702610,1725977910448,87824.70038972,0.00012,2]
[337702611,1725977910476,118167.02542341,0.00012,2]
[337702612,1725977943403,1000.0,0.0001197,2]
[337702613,1725977946458,165.96988889,0.0001197,2]
[337702614,1725977946480,165.96988889,0.0001197,2]
[337702615,1725977946503,165.96988889,0.0001197,2]
[337702616,1725977946523,2.09033333,0.0001197,2]
[337702618,1725977984808,160.41433334,7.781e-05,7]
[337702619,1725977984829,26.01516188,7.781e-05,7]
[337702621,1725978038065,158.3428945,0.0001116,2]
[337702622,1725978038090,158.3428945,0.0001116,2]
[337702623,1725978038111,158.3428945,0.0001116,2]
[337702624,1725978038133,155.0913165,0.0001116,2]
[337702625,1725978041482,300.0,0.00010959,2]
[337702626,1725978049049,150.0,7.781e-05,7]
[337702628,1725978110491,150.0,7.781e-05,7]
[337702631,1725978153940,150.0,9.291e-05,2]
[337702632,1725978153964,3.1,9.291e-05,2]
[337702633,1725978154266,146.9,0.00011821,2]
[337702634,1725978154288,6.2,0.00011821,2]
[337702635,1725978165995,150.0,0.00011204,2]
[337702636,1725978166016,100.0,0.00011204,2]
[337702637,1725978174706,150.0,7.781e-05,7]
[337702638,1725978176281,150.0,0.00010959,2]
[337702639,1725978176302,135.88,0.00010959,2]
[337702640,1725978195902,150.0,0.0001193,2]
[337702641,1725978195923,150.0,0.0001193,2]
[337702642,1725978195948,150.0,0.0001193,2]
[337702643,1725978195969,150.0,0.0001193,2]
[337702644,1725978195991,72.14372418,0.0001193,2]
[337702645,1725978208382,150.0,0.00012,2]
[337702646,1725978208401,150.0,0.00012,2]
[337702647,1725978208420,15.14,0.00012,2]
[337702648,1725978232021,150.0,0.00011944,2]
[337702649,1725978232042,51.39949522,0.00011944,2]
[337702650,1725978238732,150.0,0.00010959,2]
[337702651,1725978238753,60.21,0.00010959,2]
[337702652,1725978239992,150.0,0.00011195,2]
[337702653,1725978240014,78.84,0.00011195,2]
[337702654,1725978251094,150.0,0.00011199,2]
[337702655,1725978303405,996.28,0.00012,2]
[337702656,1725978355718,150.0,0.00011183,2]
[337702657,1725978355740,100.75,0.00011183,2]
[337702658,1725978357625,49.25,0.00011507,3]
[337702659,1725978357648,102.75,0.00011507,3]
[337702660,1725978382811,196.76,0.00011164,2]
[337702661,1725978398487,150.0,0.00011152,2]
[337702662,1725978398508,100.0,0.00011152,2]
[337702663,1725978461166,150.0,0.00011152,2]
[337702664,1725978461190,150.0,0.00011152,2]
[337702665,1725978461212,150.0,0.00011152,2]
[337702666,1725978461235,150.0,0.00011152,2]
[337702667,1725978461259,150.0,0.00011152,2]
[337702668,1725978461281,150.0,0.00011152,2]
[337702669,1725978461302,50.0,0.00011152,2]
[337702670,1725978475010,150.0,0.00011149,2]
[337702671,1725978475031,64.28,0.00011149,2]
[337702677,1725978517840,183.89728538,0.00011945,2]
[337702678,1725978517861,16.10271462,0.00011945,2]
[337702681,1725978532822,-3886.28585161,0.0001202,2]
[337702682,1725978532853,-150.0,0.00012028,2]
[337702683,1725978532883,-500.0,0.00012029,2]
[337702684,1725978532914,-1709.37630597,0.00012029,2]
[337702685,1725978532957,-360.62369403,0.00012029,2]
[337702686,1725978532985,-655.31,0.00012029,2]
[337702687,1725978533015,-1587.17,0.00012029,2]
[337702688,1725978533046,-1865.71,0.00012029,2]
[337702689,1725978533077,-1310.34,0.00012029,2]
[337702690,1725978533107,-376.98509854,0.00012029,2]
[337702691,1725978533138,-89.52336501,0.00012029,2]
[337702692,1725978533176,-1465.26822225,0.00012029,2]
[337702693,1725978557969,-3073.84841274,0.00012029,2]
[337702694,1725978558002,-1561.72,0.00012029,2]
[337702695,1725978558032,-1329.71,0.00012029,2]
[337702696,1725978558061,-559.51559559,0.00012029,2]
[337702697,1725978558100,-691.14440441,0.00012029,2]
[337702698,1725978558129,-1091.54,0.00012029,2]
[337702699,1725978558158,-565.59,0.00012029,2]
[337702700,1725978558188,-180.17536885,0.00012029,2]
[337702701,1725978583010,-530.10463115,0.00012029,2]
[337702702,1725978583039,-500.0,0.00012029,2]
[337702703,1725978583068,-500.0,0.00012029,2]
[337702704,1725978583099,-500.0,0.00012029,2]
[337702705,1725978583130,-500.0,0.00012029,2]
[337702706,1725978583158,-1755.35,0.00012029,2]
[337702707,1725978583186,-500.0,0.00012029,2]
[337702708,1725978583219,-1920.40425281,0.00012029,2]
[337702709,1725978583253,-5250.98252224,0.00012029,2]
[337702710,1725978608301,-183.98,0.00012018,2]
[337702711,1725978608330,-150.0,0.00012028,2]
[337702712,1725978608361,-6611.01571209,0.00012029,2]
[337702713,1725978608412,-2548.75807314,0.00012029,2]
[337702714,1725978613601,150.0,0.0001197,2]
[337702715,1725978613624,150.0,0.0001197,2]
[337702716,1725978613646,86.97255,0.0001197,2]
[337702719,1725978621470,604.92935178,0.0001193,2]
[337702731,1725978632363,-3309.49943972,0.00012029,2]
[337702733,1725978632373,-607.33,0.00012029,2]
[337702734,1725978632382,-56.45669623,0.00012029,2]
[337702736,1725978632394,-450.0,0.00012029,2]
[337702737,1725978632406,-933.69181351,0.00012029,2]
[337702738,1725978632418,-245.68149026,0.00012029,2]
[337702739,1725978632428,-500.0,0.00012029,2]
[337702740,1725978632438,-2404.52366051,0.00012029,2]
[337702741,1725978632450,-666.29633949,0.00012029,2]
[337702742,1725978632459,-869.41,0.00012029,2]
[337702743,1725978632469,-500.0,0.00012029,2]
[337702744,1725978632478,-1403.23,0.00012029,2]
[337702745,1725978632488,-665.69,0.00012029,2]
[337702746,1725978632498,-500.0,0.00012029,2]
[337702747,1725978632508,-1153.11,0.00012029,2]
[337702748,1725978632517,-276.23332448,0.00012029,2]
[337702749,1725978632528,-1584.84667552,0.00012029,2]
[337702750,1725978632538,-252.83909071,0.00012029,2]
[337702751,1725978632550,-267.95,0.00012029,2]
[337702752,1725978632569,-123.33090929,0.00012029,2]
[337702753,1725978632578,-1011.38267071,0.00012029,2]
[337702754,1725978632589,-153.00732929,0.00012029,2]
[337702755,1725978632599,-535.32735354,0.00012029,2]
[337702756,1725978632618,-462.82264646,0.00012029,2]
[337702757,1725978632627,-9.32057856,0.00012029,2]
[337702758,1725978632650,-2210.63942144,0.00012029,2]
[337702759,1725978632659,-3673.08,0.00012029,2]
[337702760,1725978632669,-1507.97,0.00012029,2]
[337702762,1725978632678,-1819.73,0.00012029,2]
[337702764,1725978632687,-500.0,0.00012029,2]
[337702765,1725978632696,-2889.01,0.00012029,2]
[337702766,1725978632705,-7414.59,0.00012029,2]
[337702767,1725978632714,-656.48,0.00012029,2]
[337702768,1725978632728,-4119.92,0.00012029,2]
[337702769,1725978632738,-3910.4214741,0.00012029,2]
[337702770,1725978632750,-1054.8607206,0.00012029,2]
[337702799,1725978638944,-5301.471523,0.00012029,2]
[337702801,1725978638955,-284.50499815,0.00012029,2]
[337703128,1725978642382,-1425.71765641,0.00012029,2]
[337703129,1725978642394,-475.91582843,0.00012029,2]
[337703229,1725978643383,-5660.7779,0.00012029,2]
[337703232,1725978643404,-1491.08989931,0.00012029,2]
[337703234,1725978643414,-3710.83,0.00012029,2]
[337703236,1725978643423,-1325.81,0.00012029,2]
[337703238,1725978643432,-2504.44,0.00012029,2]
[337703239,1725978643442,-777.53,0.00012029,2]
[337703241,1725978643451,-3780.17,0.00012029,2]
[337703243,1725978643461,-500.0,0.00012029,2]
[337703245,1725978643470,-500.0,0.00012029,2]
[337703247,1725978643479,-500.0,0.00012029,2]
[337703249,1725978643490,-572.39933868,0.00012029,2]
[337703251,1725978643500,-500.0,0.00012029,2]
[337703253,1725978643510,-500.0,0.00012029,2]
[337703255,1725978643520,-369.88429672,0.00012029,2]
[337703257,1725978643529,-500.0,0.00012029,2]
[337703259,1725978643538,-844.68998161,0.0001203,2]
[337703261,1725978643548,-275.96354713,0.0001203,2]
[337703263,1725978643559,-660.21,0.0001203,2]
[337703265,1725978643569,-500.0,0.0001203,2]
[337703267,1725978643578,-500.0,0.0001203,2]
[337703269,1725978643587,-500.0,0.0001203,2]
[337703271,1725978643596,-500.0,0.0001203,2]
[337703273,1725978643605,-500.0,0.0001203,2]
[337703275,1725978643615,-500.0,0.0001203,2]
[337703277,1725978643625,-500.0,0.0001203,2]
[337703279,1725978643634,-500.0,0.0001203,2]
[337703280,1725978643643,-896.77,0.0001203,2]
[337703283,1725978643653,-840.55,0.0001203,2]
[337703285,1725978643663,-899.91,0.0001203,2]
[337703287,1725978643673,-619.03,0.0001203,2]
[337703288,1725978643683,-601.64535816,0.0001203,2]
[337703290,1725978643692,-500.0,0.0001203,2]
[337703292,1725978643702,-571.94,0.0001203,2]
[337703294,1725978643711,-950.09,0.0001203,2]
[337703297,1725978643722,-500.0,0.0001203,2]
[337703299,1725978643731,-815.18,0.0001203,2]
[337703301,1725978643741,-500.0,0.0001203,2]
[337703303,1725978643752,-525.93,0.0001203,2]
[337703305,1725978643763,-764.37,0.0001203,2]
[337703307,1725978643773,-500.0,0.0001203,2]
[337703309,1725978643782,-888.34,0.0001203,2]
[337703311,1725978643793,-536.3,0.0001203,2]
[337703313,1725978643803,-3943.96,0.0001203,2]
[337703315,1725978643816,-500.0,0.0001203,2]
[337703318,1725978643826,-1779.45,0.0001203,2]
[337703320,1725978643836,-500.0,0.0001203,2]
[337703322,1725978643846,-1405.62,0.0001203,2]
[337703324,1725978643857,-660.02,0.0001203,2]
[337703326,1725978643867,-1149.15,0.0001203,2]
[337703328,1725978643876,-3033.52,0.0001203,2]
[337703330,1725978643886,-1395.71,0.0001203,2]
[337703332,1725978643896,-1738.88,0.0001203,2]
[337703334,1725978643906,-1774.55,0.0001203,2]
[337703336,1725978643916,-3493.0,0.0001203,2]
[337703338,1725978643925,-500.0,0.0001203,2]
[337703341,1725978643935,-500.0,0.0001203,2]
[337703343,1725978643947,-500.0,0.0001203,2]
[337703345,1725978643956,-1344.95,0.0001203,2]
[337703347,1725978643966,-504.55,0.0001203,2]
[337703349,1725978643975,-500.0,0.0001203,2]
[337703351,1725978643985,-500.0,0.0001203,2]
[337703353,1725978643995,-500.0,0.0001203,2]
[337703355,1725978644004,-1341.85,0.0001203,2]
[337703357,1725978644014,-500.0,0.0001203,2]
[337703359,1725978644025,-1549.83,0.0001203,2]
[337703361,1725978644035,-1630.4,0.0001203,2]
[337703363,1725978644045,-1740.37,0.0001203,2]
[337703365,1725978644058,-31325.39,0.0001203,2]
[337703367,1725978644068,-1214.63,0.0001203,2]
[337703369,1725978644078,-737.06,0.0001203,2]
[337703371,1725978644087,-2796.01,0.0001203,2]
[337703373,1725978644097,-500.0,0.0001203,2]
[337703375,1725978644107,-749.86,0.0001203,2]
[337703377,1725978644116,-2761.02,0.0001203,2]
[337703379,1725978644126,-500.0,0.0001203,2]
[337703381,1725978644136,-3486.87,0.0001203,2]
[337703383,1725978644146,-596.91,0.0001203,2]
[337703385,1725978644155,-500.0,0.0001203,2]
[337703387,1725978644165,-526.44,0.0001203,2]
[337703389,1725978644175,-798.97,0.00012031,2]
[337703391,1725978644185,-161.804,0.00012031,2]
[337703393,1725978644194,-500.0,0.00012031,2]
[337703395,1725978644204,-500.0,0.00012031,2]
[337703397,1725978644215,-500.0,0.00012031,2]
[337703399,1725978644226,-500.0,0.00012031,2]
[337703401,1725978644237,-500.0,0.00012031,2]
[337703403,1725978644246,-151.09,0.00012031,2]
[337703405,1725978644258,-500.0,0.00012035,2]
[337703407,1725978644267,-500.0,0.00012036,2]
[337703409,1725978644277,-500.0,0.00012036,2]
[337703411,1725978644287,-500.0,0.00012036,2]
[337703413,1725978644299,-500.0,0.00012036,2]
[337703415,1725978644310,-500.0,0.00012036,2]
[337703417,1725978644321,-1200.65,0.00012036,2]
[337703419,1725978644331,-500.0,0.00012036,2]
[337703421,1725978644341,-248.10700587,0.00012036,2]
[337703423,1725978644351,-500.0,0.00012036,2]
[337703425,1725978644360,-500.0,0.00012036,2]
[337703427,1725978644370,-500.0,0.00012036,2]
[337703429,1725978644380,-608.16,0.00012036,2]
[337703431,1725978644392,-500.0,0.00012036,2]
[337703433,1725978644402,-415.2136506,0.00012036,2]
[337703435,1725978644411,-500.0,0.00012036,2]
[337703437,1725978644421,-1085.04,0.00012036,2]
[337703439,1725978644431,-230.30584697,0.00012036,2]
[337703441,1725978644441,-500.0,0.00012036,2]
[337703443,1725978644451,-500.0,0.00012036,2]
[337703445,1725978644461,-500.0,0.00012036,2]
[337703447,1725978644471,-1153.22,0.00012036,2]
[337703449,1725978644480,-500.0,0.00012036,2]
[337703451,1725978644492,-568.03,0.00012036,2]
[337703453,1725978644502,-628.87,0.00012036,2]
[337703455,1725978644512,-1391.32,0.00012036,2]
[337703457,1725978644522,-500.0,0.00012036,2]
[337703459,1725978644532,-615.46,0.00012036,2]
[337703461,1725978644542,-534.91,0.00012036,2]
[337703463,1725978644551,-2778.17,0.00012036,2]
[337703465,1725978644564,-500.0,0.00012036,2]
[337703467,1725978644574,-3405.51,0.00012036,2]
[337703469,1725978644584,-518.95,0.00012036,2]
[337703471,1725978644594,-1175.48,0.00012036,2]
[337703473,1725978644604,-1534.88,0.00012036,2]
[337703475,1725978644613,-500.0,0.00012036,2]
[337703477,1725978644623,-1339.45,0.00012036,2]
[337703479,1725978644634,-1403.05,0.00012036,2]
[337703481,1725978644643,-1496.26,0.00012036,2]
[337703483,1725978644653,-500.0,0.00012036,2]
[337703485,1725978644662,-1983.75,0.00012036,2]
[337703487,1725978644672,-2430.44,0.00012036,2]
[337703489,1725978644683,-500.0,0.00012036,2]
[337703491,1725978644694,-628.0,0.00012036,2]
[337703493,1725978644704,-500.0,0.00012036,2]
[337703495,1725978644716,-1521.04,0.00012036,2]
[337703498,1725978644727,-1066.94,0.00012036,2]
[337703500,1725978644737,-1787.97,0.00012036,2]
[337703502,1725978644747,-1255.75,0.00012036,2]
[337703504,1725978644757,-869.86,0.00012036,2]
[337703506,1725978644767,-4435.78,0.00012036,2]
[337703508,1725978644778,-2635.29,0.00012036,2]
[337703510,1725978644788,-1496.65,0.00012036,2]
[337703512,1725978644798,-1198.55,0.00012036,2]
[337703514,1725978644811,-902.72,0.00012036,2]
[337703516,1725978644820,-1226.3,0.00012036,2]
[337703518,1725978644830,-1274.3,0.00012036,2]
[337703520,1725978644840,-542.03,0.00012036,2]
[337703522,1725978644849,-1046.06,0.00012036,2]
[337703524,1725978644859,-500.0,0.00012036,2]
[337703526,1725978644869,-500.0,0.00012036,2]
[337703528,1725978644879,-500.0,0.00012036,2]
[337703530,1725978644888,-500.0,0.00012036,2]
[337703532,1725978644898,-500.0,0.00012036,2]
[337703534,1725978644908,-500.0,0.00012036,2]
[337703536,1725978644919,-680.68,0.00012036,2]
[337703538,1725978644928,-2955.96,0.00012036,2]
[337703540,1725978644940,-613.19,0.00012037,2]
[337703542,1725978644951,-1317.72,0.00012037,2]
[337703544,1725978644961,-1232.15,0.00012037,2]
[337703546,1725978644971,-748.65,0.00012037,2]
[337703549,1725978644982,-500.0,0.00012037,2]
[337703551,1725978644993,-545.62,0.00012037,2]
[337703553,1725978645004,-1114.18,0.00012037,2]
[337703555,1725978645013,-500.0,0.00012037,2]
[337703557,1725978645025,-666.0,0.00012037,2]
[337703559,1725978645035,-516.0,0.00012037,2]
[337703561,1725978645046,-740.86,0.00012037,2]
[337703563,1725978645058,-2164.21,0.00012037,2]
[337703565,1725978645068,-500.0,0.00012037,2]
[337703567,1725978645078,-1104.93,0.00012037,2]
[337703569,1725978645088,-361.17,0.00012038,2]
[337703571,1725978645098,-499.99,0.00012038,2]
[337703573,1725978645108,-3651.37,0.00012038,2]
[337703575,1725978645117,-604.92935172,0.00012038,2]
[337703578,1725978645128,-2440.9480017,0.00012038,2]
[337703580,1725978645138,-1855.33836567,0.00012038,2]
[337703584,1725978645176,-500.0,0.00012036,2]
[337703586,1725978645185,-0.1075567,0.00012038,2]
[337703719,1725978646803,150.0,0.00011969,2]
[337704659,1725978658904,150.0,0.00011936,2]
[337704660,1725978658926,150.0,0.00011936,2]
[337704661,1725978658947,150.0,0.00011936,2]
[337704662,1725978658969,150.0,0.00011936,2]
[337704663,1725978658990,150.0,0.00011936,2]
[337704664,1725978659011,150.0,0.00011936,2]
[337704665,1725978659032,150.0,0.00011936,2]
[337704666,1725978659056,150.0,0.00011936,2]
[337704667,1725978659081,150.0,0.00011936,2]
[337704668,1725978659103,150.0,0.00011936,2]
[337704669,1725978659125,150.0,0.00011936,2]
[337704670,1725978659148,150.0,0.00011936,2]
[337704671,1725978659170,150.0,0.00011936,2]
[337704672,1725978659193,150.0,0.00011936,2]
[337704673,1725978659215,205.58,0.00011936,2]
[337704674,1725978659241,150.0,0.00011936,2]
[337704675,1725978659265,150.0,0.00011936,2]
[337704676,1725978659286,150.0,0.00011936,2]
[337704677,1725978659312,150.0,0.00011936,2]
[337704678,1725978659336,150.0,0.00011936,2]
[337704679,1725978659359,150.0,0.00011936,2]
[337704680,1725978659381,150.0,0.00011936,2]
[337704681,1725978659405,150.0,0.00011936,2]
[337704682,1725978659427,150.0,0.00011936,2]
[337704683,1725978659449,150.0,0.00011936,2]
[337704684,1725978659472,150.0,0.00011936,2]
[337704685,1725978659496,150.0,0.00011936,2]
[337704686,1725978659523,14555.6756,0.00011936,2]
[337704687,1725978661404,170.98,0.00010959,2]
[337704688,1725978671987,150.0,0.00010959,2]
[337704689,1725978672009,150.0,0.00010959,2]
[337704690,1725978672030,150.0,0.00010959,2]
[337704691,1725978672051,150.0,0.00010959,2]
[337704692,1725978672071,150.0,0.00010959,2]
[337704693,1725978672099,104.9,0.00010959,2]
[337704694,1725978674219,500.0,9.164e-05,2]
[337704695,1725978675837,500.0,0.00011904,2]
[337704696,1725978678622,150.0,0.00011968,2]
[337704697,1725978678645,150.0,0.00011968,2]
[337704698,1725978678668,150.0,0.00011968,2]
[337704699,1725978678691,150.0,0.00011968,2]
[337704700,1725978678714,150.0,0.00011968,2]
[337704701,1725978678736,150.0,0.00011968,2]
[337704702,1725978678759,150.0,0.00011968,2]
[337704703,1725978678782,150.0,0.00011968,2]
[337704704,1725978678805,150.0,0.00011968,2]
[337704705,1725978678828,150.0,0.00011968,2]
[337704706,1725978678854,2889.233888,0.00011968,2]
[337704707,1725978680414,150.0,7.781e-05,7]
[337704708,1725978680437,144.78199719,7.781e-05,7]
[337704709,1725978696682,150.0,0.00011222,2]
[337704710,1725978698735,150.0,0.00011941,2]
[337704711,1725978698761,150.0,0.00011941,2]
[337704712,1725978698788,42.59953585,0.00011941,2]
[337704713,1725978705449,1000.0,0.00011212,2]
[337704714,1725978709359,150.0,9.164e-05,2]
[337704715,1725978709384,150.0,9.164e-05,2]
[337704716,1725978709408,150.0,9.164e-05,2]
[337704717,1725978709433,50.0,9.164e-05,2]
[337704718,1725978718068,100.0,0.00011207,2]
[337704719,1725978718090,150.0,0.00011207,2]
[337704720,1725978718113,150.0,0.00011207,2]
[337704721,1725978718133,132.73,0.00011207,2]
[337704722,1725978739461,136.38090739,9.164e-05,2]
[337704723,1725978739485,363.61909261,9.164e-05,2]
[337704724,1725978741896,285.10265896,7.781e-05,7]
[337704725,1725978747946,250.0,0.00011207,2]
[337704726,1725978752974,3000.0,0.00011968,2]
[337704727,1725978772459,231.0,0.00011207,2]
[337704728,1725978792804,30000.0,0.00027997,120]
[337704729,1725978809929,303.4,0.00012,2]
[337704730,1725978821590,1998.27134793,0.0001176,2]
[337704731,1725978843462,1000.0,0.0001197,2]
[337704732,1725978846489,502.09033333,0.0001197,2]
[337704733,1725978851707,1085.28481672,0.00012002,2]
[337704734,1725978874434,150.0,0.00011171,2]
[337704735,1725978882955,200.0,0.00011182,2]
[337704736,1725978885358,231.23,9.264e-05,2]
[337704737,1725978885598,231.23,0.00011528,2]
[337704738,1725978901176,999.5,0.00012,2]
[337704739,1725978904950,402.97,0.00011171,2]
[337704740,1725978910967,242.61,0.00011177,2]
[337704741,1725978919201,386.97255,0.0001196,2]
[337704742,1725978921535,583.41653,0.0001197,2]
[337704743,1725978934835,750.0,0.00011,2]
[337704744,1725978980880,14700.7197,0.00011935,2]
[337704745,1725979023948,228.87,0.00010959,2]
[337704746,1725979041822,551.65078902,0.00011935,2]
[337704747,1725979087573,397.29,0.00011157,2]
[337704748,1725979135485,2000.0,0.00028,120]
[337704749,1725979210893,200.0,0.00011127,2]
[337704750,1725979224777,386.97255,0.0001192,2]
[337704751,1725979224862,386.97255,0.00012,2]
[337704752,1725979227007,583.41654,0.0001196,2]
[337704753,1725979228138,386.97255,0.0001196,2]
[337704754,1725979283330,250.0,0.00011126,2]
[337704755,1725979409466,314.66,0.00012,2]
[337704756,1725979430207,205.91,0.00011165,2]
[337704757,1725979467121,496.4857101,0.00011935,2]
[337704758,1725979467364,163.51,0.00011159,2]
[337704759,1725979495564,159.269246,0.00028,120]
[337704760,1725979496272,1009.74,0.00012,2]
[337704761,1725979506698,150.0,0.00012,2]
[337704762,1725979517238,500.00000001,0.00026,60]
[337704763,1725979517391,294.72,0.00010959,2]
[337704764,1725979530972,1000.0,0.00014101,25]
[337704765,1725979531961,208.1,9.224e-05,2]
[337704766,1725979532208,208.1,0.00011488,2]
[337704767,1725979544413,1000.0,0.00013333,20]
[337704768,1725979590852,6000.0,0.00011874,2]
[337704769,1725979591390,386.97254,0.0001192,2]
[337704770,1725979648123,500.0,0.00028,120]
[337704771,1725979648407,500.0,0.00028,120]
[337704772,1725979648673,500.0,0.00028,120]
[337704773,1725979648955,500.0,0.00028,120]
[337704774,1725979649277,500.0,0.00028,120]
[337704775,1725979649573,500.0,0.00028,120]
[337704776,1725979649843,500.0,0.00028,120]
[337704777,1725979650120,500.0,0.00028,120]
[337704778,1725979650522,500.0,0.00028,120]
[337704779,1725979650826,500.0,0.00028,120]
[337704780,1725979651092,500.0,0.00028,120]
[337704781,1725979651387,500.0,0.00028,120]
[337704782,1725979651694,500.0,0.00028,120]
[337704783,1725979652127,500.0,0.00028,120]
[337704784,1725979652352,500.0,0.00028,120]
[337704785,1725979652532,2942.87,0.00028,120]
[337704786,1725979652570,1451.56,0.00028,120]
[337704787,1725979652634,500.0,0.00028,120]
[337704788,1725979652822,2942.87,0.00028,120]
[337704789,1725979652899,500.0,0.00028,120]
[337704790,1725979652929,1451.56,0.00028,120]
[337704791,1725979653302,2942.87,0.00028,120]
[337704792,1725979653352,500.0,0.00028,120]
[337704793,1725979653384,1451.56,0.00028,120]
[337704794,1725979653424,2942.87,0.00028,120]
[337704795,1725979653492,300.76452623,0.00028,120]
[337704796,1725979653541,1451.56,0.00028,120]
[337704797,1725979653772,1451.56,0.00028,120]
[337704798,1725979653835,2942.87,0.00028,120]
[337704799,1725979654090,2942.87,0.00028,120]
[337704800,1725979654119,3405.51,0.00028,120]
[337704801,1725979654181,1451.56,0.00028,120]
[337704802,1725979654361,3405.51,0.00028,120]
[337704803,1725979654446,1451.56,0.00028,120]
[337704804,1725979654718,2942.87,0.00028,120]
[337704805,1725979654849,1451.56,0.00028,120]
[337704806,1725979655090,2942.87,0.00028,120]
[337704807,1725979655123,1451.56,0.00028,120]
[337704808,1725979655255,3405.51,0.00028,120]
[337704809,1725979655402,1451.56,0.00028,120]
[337704810,1725979655566,3405.51,0.00028,120]
[337704811,1725979655699,1451.56,0.00028,120]
[337704812,1725979655850,3405.51,0.00028,120]
[337704813,1725979655960,1451.56,0.00028,120]
[337704814,1725979656124,3405.51,0.00028,120]
[337704815,1725979656262,1451.56,0.00028,120]
[337704816,1725979656401,3405.51,0.00028,120]
[337704817,1725979656609,1451.56,0.00028,120]
[337704818,1725979656731,3405.51,0.00028,120]
[337704819,1725979656964,1451.56,0.00028,120]
[337704820,1725979657106,3405.51,0.00028,120]
[337704821,1725979657173,1451.56,0.00028,120]
[337704822,1725979657239,4841.21,0.00028,120]
[337704823,1725979657301,3405.51,0.00028,120]
[337704824,1725979657420,1344.76,0.00028,120]
[337704825,1725979657457,1451.56,0.00028,120]
[337704826,1725979657533,4841.21,0.00028,120]
[337704827,1725979657877,3405.51,0.00028,120]
[337704828,1725979657990,1344.76,0.00028,120]
[337704829,1725979658331,3405.51,0.00028,120]
[337704830,1725979658370,1344.76,0.00028,120]
[337704831,1725979658402,1451.56,0.00028,120]
[337704832,1725979658442,3405.51,0.00028,120]
[337704833,1725979658475,4841.21,0.00028,120]
[337704834,1725979658506,1344.76,0.00028,120]
[337704835,1725979658546,1451.56,0.00028,120]
[337704836,1725979658576,2942.87,0.00028,120]
[337704837,1725979658607,3405.51,0.00028,120]
[337704838,1725979658646,4841.21,0.00028,120]
[337704839,1725979658690,1344.76,0.00028,120]
[337704840,1725979658724,1451.56,0.00028,120]
[337704841,1725979658758,2942.87,0.00028,120]
[337704842,1725979658796,4841.21,0.00028,120]